bitfinex/quotes_BTCUSD_20241223
["timestamp","ask_amount","ask_price","bid_price","bid_amount"]
[1734926485566,0.6002084,95932.0,95931.0,0.00653451]
[1734926486180,0.5992084,95932.0,95931.0,0.00053451]
[1734926486595,0.6002084,95932.0,95931.0,0.00653451]
[1734926487819,0.3502084,95932.0,95931.0,0.00653451]
[1734926488025,0.001,95932.0,95931.0,0.00653451]
[1734926489076,0.00147457,95936.0,95932.0,0.208481]
[1734926489077,0.0001714,95936.0,95932.0,0.208481]
[1734926489279,0.0001714,95936.0,95932.0,0.416962]
[1734926490535,0.0001714,95936.0,95934.0,0.208476]
[1734926490750,0.0011714,95936.0,95935.0,0.15]
[1734926492059,0.0001714,95936.0,95935.0,0.15]
[1734926492272,0.0011714,95936.0,95935.0,0.15]
[1734926492949,0.0001714,95936.0,95935.0,0.15]
[1734926492950,0.0071714,95936.0,95935.0,0.151]
[1734926495126,0.0001714,95936.0,95935.0,0.15]
[1734926495550,0.0061714,95936.0,95935.0,0.151]
[1734926495753,0.0001714,95936.0,95935.0,0.15]
[1734926495968,0.0001714,95936.0,95935.0,0.151]
[1734926496198,0.0071714,95936.0,95935.0,0.151]
[1734926496681,0.0001714,95936.0,95935.0,0.15]
[1734926496927,0.0071714,95936.0,95935.0,0.151]
[1734926498818,0.19230155,95963.0,95950.0,0.12557986]
[1734926499035,0.10261034,95962.0,95950.0,0.12557986]
[1734926499193,0.10261034,95962.0,95951.0,0.208439]
[1734926500582,0.10361034,95962.0,95951.0,0.217439]
[1734926505419,0.10361034,95962.0,95951.0,0.009]
[1734926505837,0.023,95961.0,95951.0,0.009]
[1734926506052,0.10261034,95960.0,95951.0,0.009]
[1734926506271,0.208433,95955.0,95951.0,0.009]
[1734926506475,0.208435,95953.0,95951.0,0.009]
[1734926506686,0.22561034,95952.0,95951.0,0.009]
[1734926506899,0.208471,95937.0,95928.0,8.57e-05]
[1734926507112,0.00130194,95936.0,95928.0,8.57e-05]
[1734926508384,0.1,95994.0,95964.0,0.358411]
[1734926508604,0.09347047,95978.0,95964.0,0.482811]
[1734926508807,0.09347047,95978.0,95964.0,0.875802]
[1734926509007,0.09347047,95978.0,95964.0,0.9771104]
[1734926509457,0.28041143,95998.0,95964.0,0.9771104]
[1734926509458,0.308308,96012.0,95964.0,1.09772103]
[1734926509631,0.20832,96006.0,95964.0,1.09772103]
[1734926509839,0.0030857,95965.0,95964.0,1.09825554]
[1734926510248,8.57e-05,95965.0,95964.0,1.09825554]
[1734926510455,0.0020857,95965.0,95964.0,1.09825554]
[1734926512147,0.0020857,95965.0,95964.0,1.11248328]
[1734926513087,0.0020857,95965.0,95964.0,0.89608928]
[1734926514330,0.0020857,95965.0,95964.0,0.99419828]
[1734926514932,0.0020857,95965.0,95964.0,0.47068388]
[1734926515886,0.0020857,95965.0,95964.0,0.39378388]
[1734926522779,0.0020857,95965.0,95964.0,0.59509228]
[1734926523177,0.0020857,95965.0,95964.0,1.95177028]
[1734926523415,0.0020857,95965.0,95964.0,1.93527628]
[1734926523636,0.0020857,95965.0,95964.0,0.91599128]
[1734926524139,0.0020857,95965.0,95964.0,0.49509228]
[1734926524367,0.0020857,95965.0,95964.0,0.16476225]
[1734926524613,8.57e-05,95965.0,95964.0,0.00053451]
[1734926524822,0.0010857,95965.0,95964.0,0.00053451]
[1734926525433,0.1843941,95965.0,95964.0,0.00053451]
[1734926525648,0.2317941,95965.0,95964.0,0.00053451]
[1734926525853,0.2547941,95965.0,95964.0,0.00053451]
[1734926526067,0.2537941,95965.0,95964.0,0.00053451]
[1734926526475,0.2567941,95965.0,95964.0,0.00053451]
[1734926526677,0.2537941,95965.0,95964.0,0.00053451]
[1734926527096,0.2537941,95965.0,95964.0,0.00953451]
[1734926527337,0.2537941,95965.0,95964.0,0.00053451]
[1734926527739,0.2537941,95965.0,95964.0,0.00953451]
[1734926528369,0.3537941,95965.0,95964.0,0.00953451]
[1734926529803,0.3537941,95965.0,95928.0,8.57e-05]
[1734926529804,0.1,95946.0,95928.0,8.57e-05]
[1734926530006,0.1,95940.0,95928.0,8.57e-05]
[1734926530377,0.208476,95934.0,95928.0,8.57e-05]
[1734926530583,0.1243084,95933.0,95928.0,8.57e-05]
[1734926531013,0.2040084,95933.0,95932.0,0.0040857]
[1734926531219,0.2040084,95933.0,95932.0,8.57e-05]
[1734926531695,0.2040084,95933.0,95932.0,0.00024599]
[1734926532323,0.1013084,95933.0,95932.0,0.00024599]
[1734926532536,0.208462,95941.0,95932.0,0.00024599]
[1734926532740,0.001,95934.0,95932.0,0.00924599]
[1734926533150,0.1013084,95940.0,95932.0,0.00024599]
[1734926533332,0.001,95933.0,95932.0,0.00724599]
[1734926533717,0.208465,95939.0,95932.0,0.00024599]
[1734926533906,0.208465,95939.0,95932.0,0.00724599]
[1734926533907,0.001,95934.0,95932.0,0.00724599]
[1734926534268,0.208478,95933.0,95932.0,0.00024599]
[1734926534417,0.208478,95933.0,95910.0,0.12557986]
[1734926534625,0.209478,95933.0,95932.0,0.007]
[1734926535245,0.3107864,95933.0,95932.0,0.007]
[1734926535909,0.3107864,95933.0,95907.0,0.208534]
[1734926535910,0.023,95932.0,95908.0,0.15]
[1734926536095,0.208495,95926.0,95909.0,0.208531]
[1734926536280,0.208495,95926.0,95908.0,0.15]
[1734926536281,0.1013084,95925.0,95908.0,0.15]
[1734926536485,0.208498,95924.0,95908.0,0.15]
[1734926536872,0.1013084,95923.0,95909.0,0.208531]
[1734926537082,0.1013084,95923.0,95907.0,0.0138859]
[1734926537291,0.1013084,95923.0,95908.0,0.208533]
[1734926538173,0.208488,95929.0,95908.0,0.417066]
[1734926538385,0.1013084,95928.0,95908.0,0.212533]
[1734926538543,0.1013084,95928.0,95911.0,0.208526]
[1734926538946,0.416984,95927.0,95910.0,0.12557986]
[1734926539268,0.1013084,95926.0,95910.0,0.12557986]
[1734926539469,0.208496,95925.0,95908.0,0.212533]
[1734926539706,0.416992,95925.0,95908.0,0.212533]
[1734926539875,0.208496,95925.0,95908.0,0.208533]
[1734926540296,0.208509,95919.0,95908.0,0.004]
[1734926540523,0.208509,95919.0,95907.0,0.0138859]
[1734926540727,0.208498,95924.0,95907.0,0.0138859]
[1734926540867,0.208498,95924.0,95908.0,0.211533]
[1734926541098,0.208498,95924.0,95908.0,0.208533]
[1734926541297,0.208502,95922.0,95907.0,0.0138859]
[1734926541499,0.208502,95922.0,95908.0,0.003]
[1734926541771,0.208502,95922.0,95907.0,0.0138859]
[1734926541973,0.5183144,95922.0,95907.0,0.0138859]
[1734926542198,0.1013084,95921.0,95908.0,0.208533]
[1734926543206,0.0794,95932.0,95914.0,0.208518]
[1734926543412,0.0794,95932.0,95920.0,0.12557986]
[1734926543559,0.0794,95944.0,95920.0,0.12557986]
[1734926543762,0.208459,95942.0,95926.0,0.208492]
[1734926543939,0.1013084,95941.0,95926.0,0.208492]
[1734926544398,0.008,95932.0,95921.0,0.208504]
[1734926544591,0.008,95932.0,95927.0,0.208491]
[1734926545350,0.008,95932.0,95926.0,0.004]
[1734926546180,0.1013084,95931.0,95926.0,0.004]
[1734926546502,0.023,95930.0,95926.0,0.004]
[1734926546831,0.208504,95921.0,95917.0,0.01393033]
[1734926547230,0.208509,95919.0,95909.0,8.57e-05]
[1734926547554,0.208513,95917.0,95909.0,8.57e-05]
[1734926547673,0.3098214,95917.0,95909.0,8.57e-05]
[1734926548074,0.5183354,95917.0,95909.0,8.57e-05]
[1734926548319,0.1013084,95917.0,95909.0,8.57e-05]
[1734926548893,0.1023084,95917.0,95909.0,0.0090857]
[1734926549100,0.208515,95916.0,95909.0,0.0090857]
[1734926549311,0.5183394,95916.0,95909.0,0.0090857]
[1734926549517,0.3098234,95916.0,95909.0,0.0090857]
[1734926549689,0.1013084,95916.0,95909.0,0.0090857]
[1734926550871,0.1013084,95916.0,95909.0,8.57e-05]
[1734926551497,0.1023084,95916.0,95909.0,0.0090857]
[1734926552132,0.3108254,95916.0,95909.0,0.0090857]
[1734926553894,0.1023084,95916.0,95909.0,0.0090857]
[1734926554869,0.081,95921.0,95909.0,8.57e-05]
[1734926555091,0.001,95916.0,95912.0,0.208524]
[1734926556033,0.1013084,95930.0,95912.0,0.208524]
[1734926556264,0.003,95921.0,95920.0,0.12557986]
[1734926556509,0.003,95921.0,95918.0,0.208511]
[1734926557845,0.208483,95931.0,95913.0,0.15]
[1734926558092,0.0001714,95932.0,95912.0,0.009]
[1734926558093,0.001,95916.0,95912.0,0.009]
[1734926558264,0.0001714,95921.0,95909.0,8.57e-05]
[1734926558567,0.0001714,95921.0,95910.0,0.208528]
[1734926558808,0.0001714,95921.0,95918.0,0.001]
[1734926559040,0.0001714,95921.0,95910.0,0.208528]
[1734926559292,0.3098154,95920.0,95913.0,0.006]
[1734926559529,0.208511,95918.0,95913.0,0.006]
[1734926559760,0.3098194,95918.0,95913.0,0.006]
[1734926560009,0.3098194,95918.0,95909.0,8.57e-05]
[1734926560247,0.0001714,95921.0,95909.0,8.57e-05]
[1734926560489,0.2086774,95921.0,95909.0,8.57e-05]
[1734926561390,0.023,95919.0,95909.0,8.57e-05]
[1734926561596,0.208524,95913.0,95909.0,8.57e-05]
[1734926561797,0.208526,95911.0,95909.0,8.57e-05]
[1734926561973,0.1013084,95911.0,95909.0,8.57e-05]
[1734926562495,0.1013084,95911.0,95909.0,0.0090857]
[1734926562718,0.1013084,95911.0,95909.0,8.57e-05]
[1734926563304,0.1023084,95911.0,95909.0,0.0090857]
[1734926564118,0.001,95911.0,95909.0,0.0090857]
[1734926570114,0.0011714,95911.0,95909.0,0.0090857]
[1734926572494,0.1013084,95910.0,95909.0,0.0090857]
[1734926572698,0.3098364,95910.0,95909.0,0.0090857]
[1734926573264,0.1013084,95910.0,95909.0,0.0090857]
[1734926573487,0.1013084,95910.0,95909.0,8.57e-05]
[1734926573863,0.1023084,95910.0,95909.0,0.0090857]
[1734926574305,0.1253084,95910.0,95909.0,0.0090857]
[1734926575141,0.1253084,95910.0,95909.0,8.57e-05]
[1734926575142,0.1243084,95910.0,95909.0,8.57e-05]
[1734926576201,0.1253084,95910.0,95909.0,0.0090857]
[1734926576492,0.1243084,95910.0,95909.0,8.57e-05]
[1734926576734,0.1253084,95910.0,95909.0,0.0090857]
[1734926576930,0.1253084,95910.0,95909.0,8.57e-05]
[1734926578616,0.1263084,95910.0,95909.0,0.0090857]
[1734926579274,0.1243084,95910.0,95909.0,8.57e-05]
[1734926579520,0.208554,95899.0,95881.0,0.20372294]
[1734926579761,0.208557,95897.0,95881.0,0.20372294]
[1734926579983,0.3098654,95897.0,95881.0,0.21643755]
[1734926580201,0.00116002,95910.0,95887.0,0.12557986]
[1734926580432,0.00116002,95910.0,95897.0,0.208555]
[1734926580857,0.00016002,95910.0,95897.0,0.208555]
[1734926581074,0.00016002,95910.0,95902.0,0.41709]
[1734926581291,0.00016002,95910.0,95902.0,0.208544]
[1734926581715,0.1013084,95909.0,95884.0,0.0922996]
[1734926581926,0.208551,95900.0,95884.0,0.0922996]
[1734926582155,0.208538,95906.0,95885.0,0.358583]
[1734926582356,0.208541,95904.0,95885.0,0.358583]
[1734926582573,0.208546,95902.0,95885.0,0.358583]
[1734926582784,0.208546,95902.0,95897.0,0.009]
[1734926582987,0.208546,95902.0,95888.0,0.0922996]
[1734926583412,0.077,95905.0,95884.0,0.01304139]
[1734926583413,0.4171,95900.0,95884.0,0.01304139]
[1734926583620,0.1013084,95899.0,95884.0,0.01304139]
[1734926583830,0.1013084,95899.0,95885.0,0.208583]
[1734926584041,0.001,95902.0,95897.0,0.009]
[1734926584253,0.001,95902.0,95890.0,0.20857]
[1734926584673,0.1013084,95901.0,95886.0,0.208581]
[1734926585083,0.1013084,95901.0,95884.0,0.01304139]
[1734926585084,0.20855,95900.0,95884.0,0.01304139]
[1734926585294,0.1013084,95899.0,95884.0,0.01304139]
[1734926585498,0.208554,95898.0,95884.0,0.01304139]
[1734926585723,0.20855,95900.0,95884.0,0.01304139]
[1734926585724,0.1013084,95897.0,95884.0,0.22162439]
[1734926586367,0.1013084,95897.0,95885.0,0.208583]
[1734926588028,0.231539,95906.0,95888.0,0.208575]
[1734926588235,0.208553,95899.0,95887.0,0.12557986]
[1734926588847,0.1013084,95905.0,95887.0,0.12557986]
[1734926589053,0.0001714,95911.0,95895.0,0.12557986]
[1734926589295,0.0001714,95911.0,95904.0,0.208539]
[1734926589898,0.0001714,95911.0,95906.0,0.208536]
[1734926590329,0.0001714,95911.0,95906.0,0.417073]
[1734926591316,0.0001714,95911.0,95904.0,0.01300367]
[1734926591518,0.0001714,95911.0,95901.0,0.208546]
[1734926591743,0.00116002,95910.0,95907.0,0.208534]
[1734926592361,0.00016002,95910.0,95907.0,0.208534]
[1734926592570,0.00116002,95910.0,95907.0,0.208534]
[1734926592985,0.00016002,95910.0,95907.0,0.208534]
[1734926593238,0.00116002,95910.0,95907.0,0.217534]
[1734926593810,0.0792,95909.0,95907.0,0.217534]
[1734926595026,0.0792,95909.0,95907.0,0.208534]
[1734926595254,0.00033142,95910.0,95907.0,0.208534]
[1734926595459,0.001,95909.0,95907.0,0.217534]
[1734926596199,0.00033142,95910.0,95907.0,0.208534]
[1734926596633,0.00133142,95910.0,95907.0,0.217534]
[1734926596864,0.00133142,95910.0,95907.0,0.208534]
[1734926596865,0.00033142,95910.0,95907.0,0.208534]
[1734926597274,0.001,95909.0,95907.0,0.217534]
[1734926598334,0.00033142,95910.0,95907.0,0.208534]
[1734926598735,0.00033142,95910.0,95909.0,0.208531]
[1734926598912,0.00033142,95910.0,95909.0,1.79051]
[1734926599270,0.00033142,95910.0,95909.0,1.790444]
[1734926599367,0.00033142,95910.0,95909.0,1.92926862]
[1734926599560,0.00133142,95910.0,95909.0,1.92926862]
[1734926600174,8.2e-07,95911.0,95909.0,1.92926862]
[1734926600373,6.2e-07,95932.0,95921.0,0.15]
[1734926600579,6.2e-07,95932.0,95920.0,0.0829]
[1734926600580,6.2e-07,95932.0,95931.0,0.358483]
[1734926602092,6.2e-07,95932.0,95931.0,0.5889171]
[1734926602633,6.2e-07,95932.0,95931.0,0.60264721]
[1734926603248,6.2e-07,95932.0,95931.0,0.37221311]
[1734926603451,6.2e-07,95932.0,95931.0,0.37121311]
[1734926603655,6.2e-07,95932.0,95931.0,0.37221311]
[1734926603862,6.2e-07,95932.0,95931.0,0.22221311]
[1734926605120,6.2e-07,95932.0,95931.0,0.22121311]
[1734926605352,0.00400062,95932.0,95931.0,0.22221311]
[1734926605565,6.2e-07,95932.0,95931.0,0.22121311]
[1734926605903,0.00400062,95932.0,95931.0,0.22221311]
[1734926608203,6.2e-07,95932.0,95931.0,0.22121311]
[1734926608436,0.00400062,95932.0,95931.0,0.22221311]
[1734926608838,6.2e-07,95932.0,95931.0,0.22121311]
[1734926608967,0.00400062,95932.0,95931.0,0.22221311]
[1734926609797,6.2e-07,95932.0,95931.0,0.22121311]
[1734926610229,6.2e-07,95932.0,95931.0,0.37121311]
[1734926610448,6.2e-07,95932.0,95931.0,0.47252151]
[1734926610664,6.2e-07,95932.0,95931.0,0.54912151]
[1734926611138,6.2e-07,95932.0,95931.0,0.55012151]
[1734926611359,0.00400062,95932.0,95931.0,0.55012151]
[1734926611599,8.57e-05,95965.0,95964.0,0.208411]
[1734926612008,0.00062051,95965.0,95964.0,0.208411]
[1734926614524,0.00062051,95965.0,95958.0,0.208424]
[1734926614734,0.00062051,95965.0,95964.0,0.003]
[1734926614947,0.00062051,95965.0,95963.0,0.208411]
[1734926615373,0.00062051,95965.0,95964.0,0.001]
[1734926616022,0.00062051,95965.0,95963.0,0.208411]
[1734926616449,0.00062051,95965.0,95964.0,0.009]
[1734926617936,0.00062051,95965.0,95963.0,0.208411]
[1734926618177,0.00062051,95965.0,95964.0,0.001]
[1734926618387,0.00062051,95965.0,95963.0,0.208411]
[1734926618556,0.20816486,95980.0,95963.0,0.208411]
[1734926618771,0.1013084,95979.0,95965.0,0.208409]
[1734926619174,0.1013084,95979.0,95955.0,0.33400886]
[1734926619175,0.023,95978.0,95955.0,0.33400886]
[1734926619371,0.023,95976.0,95964.0,0.001]
[1734926619623,0.0762,95973.0,95955.0,0.33400886]
[1734926619832,0.255496,95971.0,95955.0,0.33400886]
[1734926620027,0.1013084,95970.0,95955.0,0.33400886]
[1734926620235,0.1013084,95970.0,95955.0,0.54243886]
[1734926621077,0.1013084,95970.0,95965.0,0.009]
[1734926621252,0.1013084,95970.0,95955.0,0.54243886]
[1734926621633,0.1053084,95970.0,95955.0,0.54243886]
[1734926621840,0.1013084,95970.0,95955.0,0.54243886]
[1734926622263,0.1013084,95970.0,95965.0,0.009]
[1734926622463,0.208365,95986.0,95960.0,0.208418]
[1734926622464,0.00016034,95980.0,95977.0,0.208383]
[1734926624285,0.00016034,95980.0,95977.0,0.22427172]
[1734926625558,0.00016034,95980.0,95979.0,0.208378]
[1734926625718,0.00016034,95980.0,95979.0,0.724677]
[1734926625922,0.00016034,95980.0,95979.0,0.691577]
[1734926626165,0.00016034,95980.0,95979.0,0.566224]
[1734926627757,0.00016034,95980.0,95979.0,0.567224]
[1734926628932,0.00016034,95980.0,95979.0,0.566224]
[1734926629507,0.00016034,95980.0,95979.0,0.5663095]
[1734926629757,0.00033134,95980.0,95979.0,0.5663095]
[1734926631032,0.00033134,95980.0,95979.0,0.3584635]
[1734926631356,0.00033134,95980.0,95979.0,1.2227905]
[1734926632350,0.00033134,95980.0,95979.0,1.3240989]
[1734926633142,0.00033134,95980.0,95979.0,0.5915719]
[1734926634039,0.00033134,95980.0,95979.0,0.4597719]
[1734926634189,0.00033134,95980.0,95979.0,0.8680389]
[1734926634672,0.00033134,95980.0,95979.0,0.8126279]
[1734926634847,0.00033134,95980.0,95979.0,0.7704529]
[1734926636759,0.00033134,95980.0,95979.0,0.6671939]
[1734926637692,0.00033134,95980.0,95979.0,0.7436939]
[1734926638394,0.00033134,95980.0,95979.0,0.7891939]
[1734926639318,3.4e-07,95980.0,95979.0,0.8891939]
[1734926639519,3.4e-07,95980.0,95979.0,0.6817719]
[1734926641287,0.0001714,96006.0,96000.0,0.208333]
[1734926641711,0.00017462,96001.0,96000.0,0.208333]
[1734926642497,0.00017462,96001.0,96000.0,0.847611]
[1734926642836,0.00017462,96001.0,96000.0,0.873111]
[1734926643039,0.00017462,96001.0,96000.0,0.975731]
[1734926643237,0.00017462,96001.0,96000.0,0.944088]
[1734926643472,0.00017462,96001.0,96000.0,0.916616]
[1734926643670,0.00017462,96001.0,96000.0,0.925616]
[1734926644111,0.00017462,96001.0,96000.0,0.93684622]
[1734926644284,0.00017462,96001.0,96000.0,0.83172022]
[1734926644691,0.00017462,96001.0,96000.0,0.37856322]
[1734926645359,0.00017462,96001.0,96000.0,1.44719522]
[1734926645561,0.00017462,96001.0,96000.0,0.68102622]
[1734926646000,0.13037462,96001.0,96000.0,0.208333]
[1734926646637,0.13537462,96001.0,96000.0,0.208333]
[1734926646845,0.08637462,96001.0,96000.0,0.208333]
[1734926647264,0.08637462,96001.0,96000.0,0.211333]
[1734926647474,0.08137462,96001.0,96000.0,0.208333]
[1734926647897,0.08137462,96001.0,96000.0,0.210333]
[1734926648106,0.08137462,96001.0,96000.0,0.208333]
[1734926648306,0.09037462,96001.0,96000.0,0.209333]
[1734926651667,0.00017462,96001.0,96000.0,0.208333]
[1734926653137,0.00517462,96001.0,96000.0,0.209333]
[1734926654284,0.00017462,96001.0,96000.0,0.208333]
[1734926654484,0.00017462,96001.0,96000.0,0.358333]
[1734926654712,0.00517462,96001.0,96000.0,0.99003]
[1734926654925,0.00517462,96001.0,96000.0,0.94078]
[1734926655099,0.00517462,96001.0,96000.0,0.868005]
[1734926655305,0.00517462,96001.0,96000.0,0.359333]
[1734926655514,0.00517462,96001.0,96000.0,0.830375]
[1734926655715,0.00517462,96001.0,96000.0,0.830287]
[1734926656158,0.00017462,96001.0,96000.0,0.829287]
[1734926656349,0.00517462,96001.0,96000.0,0.830287]
[1734926656548,0.00517462,96001.0,96000.0,0.814124]
[1734926656721,0.00017462,96001.0,96000.0,0.813124]
[1734926656928,0.00517462,96001.0,96000.0,0.813124]
[1734926657863,0.00517462,96001.0,96000.0,0.577073]
[1734926658218,0.00517462,96001.0,96000.0,0.358333]
[1734926662327,0.00017462,96001.0,96000.0,0.358333]
[1734926662981,0.00017462,96001.0,95982.0,0.09260905]
[1734926662982,0.0759,95999.0,95982.0,0.09260905]
[1734926663193,0.023,95995.0,95982.0,0.09260905]
[1734926663421,0.023,95995.0,95984.0,0.09260905]
[1734926663422,0.023,95992.0,95984.0,0.09260905]
[1734926663621,0.1013084,95991.0,95984.0,0.09260905]
[1734926663901,0.0759,95990.0,95984.0,0.09260905]
[1734926664059,0.1013084,95989.0,95984.0,0.09260905]
[1734926664403,0.1013084,95989.0,95984.0,0.30097505]
[1734926664539,0.1013084,95989.0,95984.0,0.208366]
[1734926665177,0.1013084,95989.0,95980.0,8.55e-05]
[1734926665393,0.00102584,95988.0,95980.0,8.55e-05]
[1734926665601,0.1013084,95987.0,95980.0,8.55e-05]
[1734926665800,0.1013084,95987.0,95984.0,0.001]
[1734926666004,0.00103017,95986.0,95984.0,0.001]
[1734926666207,0.1013084,95985.0,95984.0,0.001]
[1734926666574,0.10234074,95985.0,95984.0,0.001]
[1734926666813,0.10234074,95985.0,95981.0,0.208374]
[1734926667029,0.10234074,95985.0,95980.0,8.55e-05]
[1734926667405,0.00364105,95984.0,95980.0,8.55e-05]
[1734926669766,0.00664105,95984.0,95980.0,8.55e-05]
[1734926671309,0.00664105,95984.0,95981.0,0.208374]
[1734926672257,0.00364105,95984.0,95981.0,0.208374]
[1734926672406,0.10234074,95985.0,95984.0,0.15]
[1734926672407,3.9e-07,95985.0,95984.0,0.15]
[1734926672637,0.00017462,96001.0,96000.0,0.208333]
[1734926673631,0.00017462,96001.0,96000.0,0.358333]
[1734926673834,0.00917462,96001.0,96000.0,0.7047134]
[1734926674394,0.00917462,96001.0,96000.0,0.72515898]
[1734926674594,0.00917462,96001.0,96000.0,0.70205398]
[1734926674797,0.00917462,96001.0,96000.0,0.65929955]
[1734926675252,0.0001712,96012.0,96000.0,0.65929955]
[1734926675443,0.09347047,96059.0,96000.0,0.65929955]
[1734926675444,1.4e-07,96028.0,96018.0,0.25115972]
[1734926675641,0.09347047,96059.0,96030.0,0.358268]
[1734926675842,0.09347047,96059.0,96030.0,0.4595764]
[1734926676048,0.00020245,96031.0,96030.0,0.4595764]
[1734926676812,0.00020245,96031.0,96030.0,0.5886304]
[1734926677164,0.00920245,96031.0,96030.0,0.5896304]
[1734926679901,0.00920245,96031.0,96030.0,0.60752067]
[1734926680983,4.5e-07,96031.0,96030.0,0.60752067]
[1734926681193,0.0001714,96061.0,96060.0,0.208203]
[1734926681617,0.00070532,96061.0,96060.0,0.208203]
[1734926682997,0.00070532,96061.0,96060.0,0.211203]
[1734926683414,0.00070532,96061.0,96060.0,0.208203]
[1734926684186,0.00070532,96061.0,96060.0,0.211203]
[1734926685433,0.00070532,96061.0,96060.0,0.208203]
[1734926688115,0.0001712,96076.0,96061.0,0.0493]
[1734926688319,7e-05,96092.0,96091.0,0.358136]
[1734926688520,0.00023017,96092.0,96091.0,0.358136]
[1734926689215,0.00023017,96092.0,96091.0,0.37931694]
[1734926689562,0.00023017,96092.0,96091.0,0.66178634]
[1734926689976,0.00023017,96092.0,96091.0,0.66278634]
[1734926691049,0.00023017,96092.0,96091.0,0.68427134]
[1734926691257,0.00023017,96092.0,96091.0,0.79309554]
[1734926692284,0.00105881,96098.0,96091.0,0.79209554]
[1734926692494,0.00105881,96098.0,96097.0,0.458123]
[1734926692698,0.00105881,96098.0,96097.0,0.5594314]
[1734926693228,0.00105881,96098.0,96097.0,1.6099104]
[1734926693611,0.00105881,96098.0,96097.0,1.4446274]
[1734926693820,0.1,96174.0,96115.0,0.463368]
[1734926694022,0.00096112,96180.0,96157.0,0.357993]
[1734926694023,0.0007046,96158.0,96157.0,0.357993]
[1734926694298,0.00096112,96180.0,96157.0,0.357993]
[1734926694544,0.00096112,96180.0,96177.0,0.207949]
[1734926694750,0.0011211,96180.0,96177.0,0.207949]
[1734926694953,0.0011211,96180.0,96179.0,0.357945]
[1734926695178,0.0011211,96180.0,96179.0,0.6353484]
[1734926695703,0.0011211,96180.0,96179.0,0.357945]
[1734926697092,0.0011211,96180.0,96179.0,0.362945]
[1734926697404,0.0011211,96180.0,96179.0,0.357945]
[1734926697638,0.0010811,96180.0,96179.0,0.357945]
[1734926700074,0.00909226,96190.0,96189.0,0.15]
[1734926700278,0.00909226,96190.0,96189.0,0.15103947]
[1734926700688,0.00909226,96190.0,96189.0,0.25234787]
[1734926700927,0.00909226,96190.0,96189.0,0.3513084]
[1734926701284,0.00909226,96190.0,96189.0,0.7002804]
[1734926701498,0.00909226,96190.0,96189.0,0.63557103]
[1734926701698,0.00909226,96190.0,96189.0,0.6002804]
[1734926702075,0.00909226,96190.0,96189.0,0.63557103]
[1734926702492,0.00909226,96190.0,96189.0,0.64357103]
[1734926702694,0.00909226,96190.0,96189.0,0.65213762]
[1734926702819,0.00909226,96190.0,96189.0,0.26787499]
[1734926703024,0.0142193,96208.0,96199.0,0.1]
[1734926703025,0.04367007,96200.0,96199.0,0.1]
[1734926703241,7e-05,96222.0,96221.0,0.207854]
[1734926703438,7e-05,96222.0,96221.0,0.5591624]
[1734926703668,7e-05,96222.0,96221.0,0.49445303]
[1734926704226,7e-05,96222.0,96221.0,1.02809999]
[1734926704421,7e-05,96222.0,96221.0,1.06132558]
[1734926704689,7e-05,96222.0,96221.0,1.03288958]
[1734926704896,7e-05,96222.0,96221.0,0.97122358]
[1734926705250,7e-05,96222.0,96221.0,0.93593295]
[1734926705445,7e-05,96222.0,96221.0,0.84570267]
[1734926705670,7e-05,96222.0,96221.0,0.74570267]
[1734926706105,7e-05,96222.0,96221.0,0.54381867]
[1734926706260,7e-05,96222.0,96221.0,0.51059308]
[1734926706463,7e-05,96222.0,96221.0,0.47556436]
[1734926707608,7e-05,96222.0,96221.0,0.48456436]
[1734926707811,7e-05,96222.0,96221.0,0.51778995]
[1734926708222,7e-05,96222.0,96221.0,0.41648155]
[1734926708426,7e-05,96222.0,96221.0,0.38325596]
[1734926709026,7e-05,96222.0,96221.0,0.02540196]
[1734926709236,7e-05,96222.0,96221.0,0.02644107]
[1734926709439,7e-05,96222.0,96221.0,0.01744107]
[1734926709683,7e-05,96222.0,96221.0,0.02344107]
[1734926710089,7e-05,96222.0,96221.0,0.01744107]
[1734926710257,7e-05,96222.0,96221.0,0.02144107]
[1734926710590,7e-05,96222.0,96221.0,0.01744107]
[1734926710967,7e-05,96222.0,96221.0,0.02244107]
[1734926711169,7e-05,96222.0,96221.0,0.01744107]
[1734926713141,0.207857,96220.0,96181.0,0.1]
[1734926713327,0.1013084,96219.0,96193.0,0.01659237]
[1734926713619,7e-05,96222.0,96193.0,0.01659237]
[1734926713620,0.207854,96221.0,96194.0,0.20895141]
[1734926713844,7e-05,96222.0,96194.0,0.00103941]
[1734926714037,0.1013084,96221.0,96193.0,0.01659237]
[1734926714278,0.207897,96202.0,96179.0,0.207945]
[1734926714484,0.207897,96202.0,96180.0,0.18796417]
[1734926714701,0.207897,96202.0,96199.0,0.0035334]
[1734926714910,0.1245,96201.0,96199.0,0.0035334]
[1734926715119,0.3092084,96200.0,96199.0,0.0035334]
[1734926715931,0.3092084,96200.0,96199.0,0.0005334]
[1734926716337,0.3092084,96200.0,96199.0,0.0015334]
[1734926716541,0.3092084,96200.0,96199.0,0.0005334]
[1734926716962,0.3092084,96200.0,96199.0,0.0095334]
[1734926718733,0.3322084,96200.0,96199.0,0.0095334]
[1734926719343,0.207943,96180.0,96179.0,0.0001706]
[1734926719567,0.207943,96180.0,96179.0,0.00070452]
[1734926720772,0.3092514,96180.0,96179.0,0.00070452]
[1734926721054,0.4881514,96180.0,96179.0,0.00070452]
[1734926721351,0.55786917,96180.0,96179.0,0.00070452]
[1734926721554,0.73086917,96180.0,96179.0,0.00070452]
[1734926721771,0.2288084,96180.0,96179.0,0.00070452]
[1734926721975,0.1275,96180.0,96179.0,0.00070452]
[1734926722196,0.286843,96180.0,96179.0,0.00070452]
[1734926722793,0.286843,96180.0,96179.0,0.00970452]
[1734926723025,0.287843,96180.0,96179.0,0.00970452]
[1734926723202,0.286843,96180.0,96179.0,0.00070452]
[1734926723410,0.286811,96195.0,96179.0,0.00070452]
[1734926723584,0.0789,96195.0,96180.0,0.207943]
[1734926723787,0.207897,96202.0,96181.0,0.00103954]
[1734926723991,0.2079,96200.0,96181.0,0.00103954]
[1734926724196,0.207916,96193.0,96181.0,0.00103954]
[1734926724642,0.2079,96200.0,96181.0,0.00103954]
[1734926724792,0.207914,96194.0,96180.0,0.00103954]
[1734926726067,0.207929,96187.0,96179.0,0.00070452]
[1734926726271,0.202929,96187.0,96179.0,0.00070452]
[1734926726671,0.202929,96187.0,96181.0,0.001]
[1734926726871,0.202929,96187.0,96179.0,0.00070452]
[1734926727391,0.207943,96180.0,96179.0,0.00070452]